[Event "4th Capablanca Memorial GM 2018"]
[Site "Heraklion"]
[Date "2018.04.10"]
[Round "2"]
[White "Georgakopoulos, Nikolaos"]
[Black "Pogosyan, Stefan"]
[Result "0-1"]
[ECO "D70"]
[WhiteElo "2346"]
[BlackElo "2314"]
[Annotator "NA"]
[PlyCount "70"]
[EventDate "2018.??.??"]
[EventType "tourn"]
[EventCountry "GRE"]
[SourceTitle "playchess.com"]
[Source "ChessBase"]
[SourceQuality "1"]
[TimeControl "40/5400+30:1800+30"]

1. Nf3 {[%emt 0:00:00]} Nf6 {[%emt 0:00:19]} 2. c4 {[%emt 0:00:01]} c6 {[%emt 0:01:07]} 3. d4 {[%emt 0:01:39]} d5 {[%emt 0:00:07]} 4. Nbd2 {[%emt 0:00:41]} Bf5 {[%emt 0:00:44]} 5. Nh4 {[%emt 0:00:44]} Be4 {[%emt 0:00:12]} 6. f3 {[%emt 0:01:22]} Bg6 {[%emt 0:00:43]} 7. Qb3 {[%emt 0:00:25]} Qc7 {[%emt 0:03:09]} 8. e3 {[%emt 0:15:55]} e6 {[%emt 0:04:47]} 9. cxd5 {[%emt 0:21:15]} exd5 {[%emt 0:01:11]} 10. g4 {[%emt 0:14:47]} Bd6 {[%emt 0:06:17]} 11. g5 {[%emt 0:02:49]} Nfd7 {[%emt 0:03:01]} 12. Nxg6 {[%emt 0:05:38]} hxg6 {[%emt 0:00:11]} 13. f4 {[%emt 0:00:25]} c5 {[%emt 0:10:36]} 14. Qxd5 {[%emt 0:09:34]} cxd4 {[%emt 0:00:35]} 15. Qxd4 {[%emt 0:00:25]} O-O {[%emt 0:01:38]} 16. Ne4 {[%emt 0:02:12]} Be7 {[%emt 0:01:29]} 17. Bd2 {[%emt 0:06:18]} Nc6 {[%emt 0:00:56]} 18. Qc4 {[%emt 0:00:07]} Nb6 {[%emt 0:04:06]} 19. Qb3 {[%emt 0:00:04]} a5 {[%emt 0:07:35]} 20. Bg2 {[%emt 0:01:22]} a4 {[%emt 0:00:17]} 21. Qc2 {[%emt 0:01:30]} Nd5 {[%emt 0:00:38]} 22. a3 {[%emt 0:06:51]} Qb6 {[%emt 0:01:57]} 23. Qc1 {[%emt 0:02:04]} Na5 {[%emt 0:01:30]} 24. Bxa5 {[%emt 0:04:23]} Rxa5 {[%emt 0:01:05]} 25. Ke2 {[%emt 0:01:18]} Rb5 {[%emt 0:01:44]} 26. Rb1 {[%emt 0:00:08]} Bxa3 {[%emt 0:05:15]} 27. Nf6+ {[%emt 0:00:55]} gxf6 {[%emt 0:01:09]} 28. Bxd5 {[%emt 0:00:03]} Bxb2 {[%emt 0:05:11]} 29. Rxb2 {[%emt 0:00:29]} Rxb2+ {[%emt 0:00:11]} 30. Kf3 {[%emt 0:00:01]} fxg5 {[%emt 0:00:42]} 31. Rg1 {[%emt 0:00:07]} Qb5 {[%emt 0:04:28]} 32. Rxg5 {[%emt 0:01:24]} Qe2+ {[%emt 0:00:21]} 33. Kg3 {[%emt 0:00:03]} Qxh2+ {[%emt 0:00:53]} 34. Kf3 {[%emt 0:01:01]} Kh7 {[%emt 0:02:22]} 35. f5 {[%emt 0:00:56]} Rf2+ {[%emt 0:01:23]} 0-1

[Event "4th Capablanca Memorial GM 2018"]
[Site "Heraklion"]
[Date "2018.04.11"]
[Round "3"]
[White "Pogosyan, Stefan"]
[Black "Koutoukidis, Panagiotis"]
[Result "1/2-1/2"]
[ECO "E36"]
[WhiteElo "2314"]
[BlackElo "2332"]
[Annotator "NA"]
[PlyCount "91"]
[EventDate "2018.??.??"]
[EventType "tourn"]
[EventCountry "GRE"]
[SourceTitle "playchess.com"]
[Source "ChessBase"]
[SourceQuality "1"]
[TimeControl "40/5400+30:1800+30"]

1. d4 {[%emt 0:00:00]} Nf6 {[%emt 0:00:10]} 2. c4 {[%emt 0:00:00]} e6 {[%emt 0:00:10]} 3. Nc3 {[%emt 0:00:00]} Bb4 {[%emt 0:00:04]} 4. Qc2 {[%emt 0:00:00]} O-O {[%emt 0:00:13]} 5. a3 {[%emt 0:00:00]} Bxc3+ {[%emt 0:00:05]} 6. Qxc3 {[%emt 0:00:03]} d5 {[%emt 0:00:05]} 7. Bg5 {[%emt 0:01:36]} dxc4 {[%emt 0:00:11] E36: Nimzo-Indian: Classical: 4...d5 5 a3} (7... h6 8. Bxf6 Qxf6 9. Nf3 c6 10. g3 Nd7 11. Bh3 b6 12. cxd5 cxd5 13. Qc6 Rb8 14. O-O Rd8 15. Rfc1 {½-½ (24) Mamedyarov,S (2809)-Aronian,L (2794) Berlin 2018}) 8. Qxc4 {[%emt 0:04:17]} b6 {[%emt 0:00:13]} 9. Nf3 {[%emt 0:00:55]} Ba6 {[%emt 0:00:12]} 10. Qa4 {[%emt 0:00:53]} Qd7 {[%emt 0:00:08]} 11. Qc2 {[%emt 0:02:00]} c5 {[%emt 0:00:16]} 12. dxc5 {[%emt 0:11:53] LiveBook: 17 Games} Rc8 {[%emt 0:00:15]} 13. Rd1 {[%emt 0:01:23]} Qe7 {[%emt 0:00:16]} 14. Qd2 {[%emt 0:19:20]} Qxc5 {[%emt 0:07:31]} 15. Bxf6 $146 {[%emt 0:01:21]} ({Predecessor:} 15. b4 Qf5 16. Nd4 Qg6 17. Bxf6 Qxf6 {½-½ (31) Csiki,E (2200)-Paszewski,M (2327) Zalakaros 2017}) 15... gxf6 {[%emt 0:00:18]} 16. e3 {[%emt 0:03:56]} Bxf1 {[%emt 0:00:31]} 17. Kxf1 {[%emt 0:04:03]} Nc6 {[%emt 0:01:34]} 18. Rc1 {[%emt 0:00:33]} Qb5+ {[%emt 0:01:31]} 19. Qe2 {[%emt 0:00:20]} Qf5 {[%emt 0:07:29]} 20. g4 {[%emt 0:10:02]} Qg6 {[%emt 0:06:14]} 21. Qc2 {[%emt 0:04:14]} Qxc2 {[%emt 0:04:44]} 22. Rxc2 {[%emt 0:00:20]} Ne5 {[%emt 0:01:28]} 23. Rxc8+ {[%emt 0:00:23]} Rxc8 {[%emt 0:00:06]} 24. Nxe5 {[%emt 0:00:05]} fxe5 {[%emt 0:00:36]} 25. Kg2 {[%emt 0:00:06]} Rc2 {[%emt 0:00:13]} 26. Rb1 $1 {[%emt 0:00:22]} Kf8 {[%emt 0:01:17]} 27. e4 {[%emt 0:02:25]} Ke7 {[%emt 0:01:34]} 28. h4 {[%emt 0:02:19]} Kd6 {[%emt 0:02:53]} 29. Rd1+ {[%emt 0:00:40]} Ke7 {[%emt 0:02:36]} 30. Rb1 {[%emt 0:00:07]} a5 {[%emt 0:01:15]} 31. Kf3 {[%emt 0:02:22]} Kd6 {[%emt 0:01:18]} 32. Ke3 {[%emt 0:01:41]} Kc5 {[%emt 0:01:14]} 33. b4+ {[%emt 0:02:18]} axb4 {[%emt 0:08:41]} 34. axb4+ {[%emt 0:00:40]} Kc4 {[%emt 0:01:04]} 35. Rd1 {[%emt 0:03:01]} Rc3+ {[%emt 0:00:34]} 36. Ke2 {[%emt 0:00:21]} Rh3 $11 {[%emt 0:00:09]} 37. h5 {[%emt 0:00:38]} f5 {[%emt 0:00:39]} 38. f3 {[%emt 0:05:14]} fxg4 {[%emt 0:00:28]} 39. fxg4 {[%emt 0:00:04]} Rg3 {[%emt 0:00:06]} 40. Rd6 {[%emt 0:00:00]} Rxg4 {[%emt 0:02:15]} 41. Rxb6 {[%emt 0:04:31]} Rxe4+ {[%emt 0:00:15]} 42. Kf3 {[%emt 0:00:09]} Rf4+ {[%emt 0:00:30]} 43. Ke3 {[%emt 0:00:45]} Rh4 {[%emt 0:08:42]} 44. Rxe6 {[%emt 0:00:21]} Rxh5 {[%emt 0:00:05]} 45. Ke4 {[%emt 0:00:42]} Kxb4 {[%emt 0:00:09]} 46. Rxe5 {[%emt 0:00:14]} 1/2-1/2

[Event "4th Capablanca Memorial GM 2018"]
[Site "Heraklion"]
[Date "2018.04.12"]
[Round "4"]
[White "Koutoukidis, Panagiotis"]
[Black "Townsend, M Paul"]
[Result "1-0"]
[ECO "C01"]
[WhiteElo "2332"]
[BlackElo "2211"]
[Annotator "NA"]
[PlyCount "81"]
[EventDate "2018.??.??"]
[EventType "tourn"]
[EventCountry "GRE"]
[SourceTitle "playchess.com"]
[Source "ChessBase"]
[SourceQuality "1"]
[TimeControl "40/5400+30:1800+30"]

1. e4 {[%emt 0:00:00]} e6 {[%emt 0:00:08]} 2. d4 {[%emt 0:00:00]} d5 {[%emt 0:00:04]} 3. Nc3 {[%emt 0:00:00]} Bb4 {[%emt 0:00:17]} 4. exd5 {[%emt 0:00:00]} exd5 {[%emt 0:00:08]} 5. Bd3 {[%emt 0:00:00]} Nf6 {[%emt 0:09:59]} 6. Nge2 {[%emt 0:01:03]} Nc6 {[%emt 0:05:08]} 7. O-O {[%emt 0:01:35]} O-O {[%emt 0:12:28]} 8. Bg5 {[%emt 0:00:36]} Be7 {[%emt 0:02:08] LiveBook: 5 Games} 9. Qd2 {[%emt 0:02:30]} Re8 {[%emt 0:13:12]} 10. a3 {[%emt 0:04:00]} Na5 {[%emt 0:09:49]} 11. b3 $11 {[%emt 0:06:33]} b6 {[%emt 0:01:30]} 12. Rfe1 {[%emt 0:01:20]} c6 {[%emt 0:02:22]} 13. Ng3 {[%emt 0:00:52]} Nb7 {[%emt 0:03:42]} 14. Rxe7 {[%emt 0:05:41]} Qxe7 {[%emt 0:12:15]} 15. Nh5 {[%emt 0:00:06]} Nxh5 {[%emt 0:02:25]} 16. Bxe7 {[%emt 0:00:14]} Rxe7 {[%emt 0:00:04]} 17. Re1 {[%emt 0:02:23]} Be6 {[%emt 0:05:55]} 18. Qg5 {[%emt 0:04:00]} Nf6 {[%emt 0:00:11]} 19. Qf4 {[%emt 0:00:47]} Rae8 {[%emt 0:01:28]} 20. f3 {[%emt 0:00:43]} Nh5 {[%emt 0:04:17]} 21. Qe5 {[%emt 0:02:48]} g6 {[%emt 0:00:14]} 22. Qg5 {[%emt 0:04:07]} Nd6 {[%emt 0:02:54]} 23. g4 {[%emt 0:02:00]} f6 {[%emt 0:04:51]} 24. Qd2 {[%emt 0:02:05]} Ng7 {[%emt 0:00:07]} 25. Qf4 {[%emt 0:00:14]} Nc8 {[%emt 0:02:34]} 26. Ba6 {[%emt 0:02:10]} Kf7 {[%emt 0:00:45]} 27. Kf2 {[%emt 0:02:50]} Rd7 {[%emt 0:01:02]} 28. h4 {[%emt 0:05:56]} Nd6 {[%emt 0:01:01]} 29. Bd3 {[%emt 0:00:08]} f5 {[%emt 0:02:49]} 30. h5 {[%emt 0:02:30]} Ree7 {[%emt 0:01:07]} 31. hxg6+ {[%emt 0:00:45]} hxg6 {[%emt 0:00:05]} 32. Rh1 {[%emt 0:00:11]} Nde8 {[%emt 0:00:30]} 33. Rh6 {[%emt 0:02:17]} Rd6 {[%emt 0:00:36]} 34. Ne2 {[%emt 0:01:42]} Bd7 {[%emt 0:00:36]} 35. Ng3 {[%emt 0:00:25]} Rf6 {[%emt 0:00:40]} 36. Qg5 {[%emt 0:03:51]} Ne6 {[%emt 0:00:32]} 37. Qh4 {[%emt 0:01:23]} fxg4 {[%emt 0:00:20]} 38. Bxg6+ {[%emt 0:00:52]} Rxg6 {[%emt 0:00:42]} 39. Rxg6 {[%emt 0:00:07]} N6g7 {[%emt 0:00:26]} 40. Nh5 {[%emt 0:00:00]} g3+ {[%emt 0:00:26]} 41. Nxg3 {[%emt 0:03:09]} 1-0

[Event "4th Capablanca Memorial GM 2018"]
[Site "Heraklion"]
[Date "2018.04.14"]
[Round "6"]
[White "Georgakopoulos, Nikolaos"]
[Black "Petrova, Kristyna"]
[Result "1/2-1/2"]
[ECO "D71"]
[WhiteElo "2346"]
[BlackElo "2257"]
[Annotator "NA"]
[PlyCount "63"]
[EventDate "2018.??.??"]
[EventType "tourn"]
[EventCountry "GRE"]
[SourceTitle "playchess.com"]
[Source "ChessBase"]
[SourceQuality "1"]
[TimeControl "40/5400+30:1800+30"]

1. d4 {[%emt 0:00:00]} Nf6 {[%emt 0:00:05]} 2. c4 {[%emt 0:00:00]} g6 {[%emt 0:00:04]} 3. g3 {[%emt 0:00:00]} d5 {[%emt 0:01:54]} 4. cxd5 {[%emt 0:00:56]} Nxd5 {[%emt 0:00:06]} 5. Bg2 {[%emt 0:00:42]} Bg7 {[%emt 0:00:08]} 6. Nf3 {[%emt 0:00:06]} Nb6 {[%emt 0:00:16]} 7. Nc3 {[%emt 0:00:53]} Nc6 {[%emt 0:00:15]} 8. e3 {[%emt 0:00:53]} O-O {[%emt 0:00:08]} 9. O-O {[%emt 0:00:05]} Re8 {[%emt 0:00:18]} 10. Nh4 {[%emt 0:01:49] D76: Fianchetto Grünfeld: Main Line with 7...Nb6} (10. a3 e5 11. d5 Na5 12. Qc2 c6 13. b4 Nac4 14. dxc6 bxc6 15. Rd1 Bf5 16. e4 Bd7 17. Na4 Nxa4 18. Qxc4 {½-½ (50) Le,Q (2737)-Ivanchuk,V (2726) Huaian 2017}) 10... e5 {[%emt 0:00:21]} 11. d5 {[%emt 0:00:12]} Na5 {[%emt 0:05:45]} 12. Rb1 {[%emt 0:01:49]} e4 {[%emt 0:04:36]} 13. Nxe4 {[%emt 0:01:15]} Nxd5 {[%emt 0:05:35]} 14. Qa4 {[%emt 0:07:31]} Nc6 {[%emt 0:51:48]} 15. Rd1 {[%emt 0:05:27]} Nce7 {[%emt 0:00:13]} 16. Nc5 {[%emt 0:08:23]} (16. b4 $16) 16... b6 $1 $146 {[%emt 0:05:48]} ({Predecessor:} 16... b5 17. Qb3 c6 {1-0 (52) Vazquez,G (2443)-He,A (2307) Chicago 2017}) 17. Bxd5 {[%emt 0:17:31]} Nxd5 {[%emt 0:00:08]} 18. Rxd5 {[%emt 0:00:09]} Qxd5 {[%emt 0:00:07]} 19. Qxe8+ $16 {[%emt 0:00:07]} Bf8 {[%emt 0:00:01]} 20. Qe4 {[%emt 0:01:54]} Qd1+ {[%emt 0:07:36]} 21. Kg2 {[%emt 0:00:06]} bxc5 {[%emt 0:00:07]} 22. Qxa8 {[%emt 0:36:40]} Ba6 {[%emt 0:00:06]} 23. h3 {[%emt 0:03:44]} g5 {[%emt 0:02:54]} 24. e4 {[%emt 0:08:23]} Bd3 {[%emt 0:00:25]} 25. Qd5 {[%emt 0:02:30]} Qf1+ {[%emt 0:05:08]} 26. Kh2 {[%emt 0:00:03]} Qxf2+ {[%emt 0:00:13]} 27. Ng2 {[%emt 0:00:19]} Bxb1 {[%emt 0:00:11]} 28. Qxg5+ {[%emt 0:00:28]} Kh8 {[%emt 0:01:58]} 29. Qd8 {[%emt 0:00:49]} Kg7 {[%emt 0:00:09]} 30. Qg5+ {[%emt 0:00:20]} Kh8 {[%emt 0:00:02]} 31. Qd8 {[%emt 0:01:51]} Kg7 {[%emt 0:00:05]} 32. Qg5+ {[%emt 0:00:26]} 1/2-1/2

[Event "4th Capablanca Memorial GM 2018"]
[Site "Heraklion"]
[Date "2018.04.14"]
[Round "6"]
[White "Pogosyan, Stefan"]
[Black "Townsend, M Paul"]
[Result "1-0"]
[ECO "D54"]
[WhiteElo "2314"]
[BlackElo "2211"]
[Annotator "NA"]
[PlyCount "91"]
[EventDate "2018.??.??"]
[EventType "tourn"]
[EventCountry "GRE"]
[SourceTitle "playchess.com"]
[Source "ChessBase"]
[SourceQuality "1"]
[TimeControl "40/5400+30:1800+30"]

1. d4 {[%emt 0:00:00]} Nf6 {[%emt 0:00:09]} 2. c4 {[%emt 0:00:00]} e6 {[%emt 0:00:07]} 3. Nc3 {[%emt 0:00:00]} d5 {[%emt 0:00:13]} 4. cxd5 {[%emt 0:01:58]} exd5 {[%emt 0:00:09]} 5. Bg5 {[%emt 0:00:06]} c6 {[%emt 0:00:24]} 6. e3 {[%emt 0:00:07]} Be7 {[%emt 0:00:17]} 7. Bd3 {[%emt 0:00:44]} Nbd7 {[%emt 0:00:19]} 8. Rc1 {[%emt 0:01:43]} h6 {[%emt 0:05:06]} 9. Bh4 {[%emt 0:02:31]} O-O {[%emt 0:01:32]} 10. Nge2 {[%emt 0:00:52] D54: Queen's Gambit Declined: 4 Bg5 Be7: Lines without Nf3} (10. Bg3 Re8 11. h3 Bb4 12. Nf3 Ne4 13. Bf4 c5 14. O-O Bxc3 15. bxc3 Nb6 16. Ne5 f6 17. Ng4 c4 {0-1 (51) Rapport,R (2715)-Keymer,V (2403) Karlsruhe 2018}) 10... Nh5 {[%emt 0:10:57]} 11. Bxe7 {[%emt 0:00:43]} Qxe7 {[%emt 0:00:07]} 12. g4 {[%emt 0:06:59]} Nhf6 {[%emt 0:01:38]} 13. Ng3 {[%emt 0:01:06]} Nb6 {[%emt 0:03:09]} 14. h3 {[%emt 0:01:51]} Nc4 {[%emt 0:12:08]} 15. Qe2 $146 {[%emt 0:05:51]} ({Predecessor:} 15. Bxc4 dxc4 16. Qe2 Be6 {0-1 (45) Havasi,K-Canal,E Budapest 1932}) 15... Nd6 {[%emt 0:09:18]} 16. f3 {[%emt 0:00:50]} Nh7 {[%emt 0:06:37]} 17. e4 {[%emt 0:06:17]} dxe4 {[%emt 0:01:58]} 18. fxe4 {[%emt 0:00:26]} Qh4 {[%emt 0:00:30]} 19. Qf2 {[%emt 0:00:58]} Ng5 {[%emt 0:03:13]} 20. Nge2 {[%emt 0:02:16]} Be6 {[%emt 0:20:58]} 21. Qxh4 {[%emt 0:04:09]} Nf3+ {[%emt 0:02:01]} 22. Kf2 {[%emt 0:00:04]} Nxh4 {[%emt 0:00:08]} 23. Kg3 {[%emt 0:02:46]} g5 {[%emt 0:01:12]} 24. b3 $11 {[%emt 0:01:02]} f6 {[%emt 0:02:51]} 25. Nd1 {[%emt 0:08:58]} Rae8 {[%emt 0:01:58]} 26. Nec3 {[%emt 0:03:15]} Rd8 {[%emt 0:03:02]} 27. Ne3 {[%emt 0:00:46]} Nf7 {[%emt 0:00:47]} 28. Ne2 {[%emt 0:02:00]} Kg7 {[%emt 0:02:18]} 29. Nf5+ {[%emt 0:05:12]} Bxf5 {[%emt 0:03:28]} 30. gxf5 {[%emt 0:00:13]} Rfe8 {[%emt 0:00:50]} 31. Rhd1 {[%emt 0:09:17]} Nd6 {[%emt 0:02:28]} 32. Nc3 {[%emt 0:00:12]} Ndxf5+ {[%emt 0:02:49]} 33. exf5 {[%emt 0:00:22]} Re3+ {[%emt 0:00:42]} 34. Kf2 {[%emt 0:03:14]} Rf3+ {[%emt 0:00:57]} 35. Ke2 {[%emt 0:00:06]} Rxd4 {[%emt 0:01:37]} 36. Bb1 {[%emt 0:02:58]} Rxd1 {[%emt 0:00:47]} 37. Nxd1 {[%emt 0:00:08]} Rxh3 {[%emt 0:00:12]} 38. Nf2 {[%emt 0:00:10]} Rf3 {[%emt 0:01:01]} 39. Rd1 {[%emt 0:00:28]} h5 {[%emt 0:00:12]} 40. Rd4 {[%emt 0:00:00]} Rc3 {[%emt 0:01:22]} 41. Rd7+ {[%emt 0:07:43]} Kh6 {[%emt 0:04:34]} 42. Ne4 {[%emt 0:00:50]} Rc1 {[%emt 0:00:47]} 43. Nxf6 {[%emt 0:01:36]} g4 {[%emt 0:00:24]} 44. Ng8+ {[%emt 0:00:03]} Kg5 {[%emt 0:00:09]} 45. Rg7+ {[%emt 0:00:13]} Kf4 {[%emt 0:00:10]} 46. f6 {[%emt 0:00:05]} 1-0

[Event "4th Capablanca Memorial GM 2018"]
[Site "Heraklion"]
[Date "2018.04.17"]
[Round "9"]
[White "Petrova, Kristyna"]
[Black "Pogosyan, Stefan"]
[Result "1/2-1/2"]
[ECO "D02"]
[WhiteElo "2257"]
[BlackElo "2314"]
[Annotator "NA"]
[PlyCount "74"]
[EventDate "2018.??.??"]
[EventType "tourn"]
[EventCountry "GRE"]
[SourceTitle "playchess.com"]
[Source "ChessBase"]
[SourceQuality "1"]
[TimeControl "40/5400+30:1800+30"]

1. Nf3 {[%emt 0:00:00]} Nf6 {[%emt 0:00:07]} 2. g3 {[%emt 0:00:00]} d5 {[%emt 0:00:52]} 3. Bg2 {[%emt 0:00:00]} c5 {[%emt 0:00:08]} 4. O-O {[%emt 0:00:16]} Nc6 {[%emt 0:00:09]} 5. d4 {[%emt 0:00:08]} Bf5 {[%emt 0:03:38]} 6. c4 {[%emt 0:05:51]} e6 {[%emt 0:14:56]} 7. Nc3 {[%emt 0:12:24] LiveBook: 9 Games} dxc4 {[%emt 0:00:30]} ({Predecessor:} 7... Be7 $146 8. cxd5 exd5 9. dxc5 Bxc5 10. Bg5 d4 11. Nb5 a6 12. Bxf6 gxf6 13. Rc1 Bb6 14. Na3 Qd7 15. Nc4 {0-1 (51) Vaulin,A (2516)-Rabiega,R (2522) chessassistantclub.com INT 2004}) 8. Ne5 {[%emt 0:09:40]} Rc8 {[%emt 0:00:27]} 9. Nxc6 {[%emt 0:17:54]} bxc6 {[%emt 0:00:18]} 10. dxc5 {[%emt 0:00:24]} Bxc5 {[%emt 0:03:36]} 11. Qa4 {[%emt 0:01:37]} O-O {[%emt 0:00:57]} 12. Qxc4 {[%emt 0:00:16]} Bb6 {[%emt 0:02:14]} 13. Rd1 {[%emt 0:07:56]} Qe7 {[%emt 0:00:28]} 14. Na4 {[%emt 0:04:09]} Rfd8 {[%emt 0:06:25]} 15. Bf4 {[%emt 0:01:21]} e5 {[%emt 0:01:03]} 16. Nxb6 {[%emt 0:01:05]} axb6 {[%emt 0:00:18]} 17. Rxd8+ {[%emt 0:06:12]} Rxd8 {[%emt 0:00:16]} 18. Bg5 {[%emt 0:00:28]} c5 {[%emt 0:00:58]} 19. Qb3 {[%emt 0:01:29]} h6 {[%emt 0:05:19]} 20. Bxf6 {[%emt 0:00:46]} Qxf6 {[%emt 0:00:08]} 21. Bd5 {[%emt 0:00:43]} e4 {[%emt 0:06:14]} 22. Rd1 {[%emt 0:02:30]} Be6 {[%emt 0:09:30]} 23. Bxe6 {[%emt 0:01:04]} Rxd1+ {[%emt 0:00:05]} 24. Qxd1 {[%emt 0:00:02]} Qxe6 {[%emt 0:00:01]} 25. a4 {[%emt 0:02:53]} g6 {[%emt 0:04:22]} 26. a5 {[%emt 0:02:36]} bxa5 {[%emt 0:01:37]} 27. Qd8+ {[%emt 0:00:02]} Kg7 {[%emt 0:01:10]} 28. Qxa5 {[%emt 0:00:04]} Qc4 {[%emt 0:01:54]} 29. Qd2 {[%emt 0:03:24]} Qd4 {[%emt 0:03:31]} 30. Qc1 {[%emt 0:05:05]} g5 {[%emt 0:01:55]} 31. Kg2 {[%emt 0:06:53]} f6 {[%emt 0:03:43]} 32. e3 {[%emt 0:02:37]} Qd5 {[%emt 0:00:28]} 33. Qc3 {[%emt 0:02:08]} h5 {[%emt 0:03:15]} 34. Qa5 {[%emt 0:00:30]} Qd6 {[%emt 0:06:48]} 35. Qa7+ {[%emt 0:00:11]} Kg6 {[%emt 0:00:08]} 36. Qa8 {[%emt 0:00:37]} Qe6 {[%emt 0:00:21]} 37. h3 {[%emt 0:01:18]} c4 {[%emt 0:02:45]} 1/2-1/2